bitfinex/quotes_SOLUSD_20260221
["timestamp","ask_amount","ask_price","bid_price","bid_amount"]
[1771636498276,0.45224695,84.717,84.681,41.33158559]
[1771636498674,0.45224695,84.717,84.691,0.37310542]
[1771636498893,0.1,84.72,84.691,0.37310542]
[1771636499486,0.45224695,84.719,84.691,0.37310542]
[1771636499884,0.45224695,84.719,84.7,4.28807873]
[1771636500180,0.45224695,84.726,84.69,4.28807873]
[1771636500369,0.45224695,84.719,84.682,11.808885]
[1771636500573,0.45224695,84.719,84.683,0.37352991]
[1771636503681,41.30914583,84.727,84.685,0.37412844]
[1771636503682,0.45224695,84.717,84.685,0.37412844]
[1771636506189,0.45224695,84.715,84.686,12.18284475]
[1771636506489,0.45224695,84.715,84.687,0.37451752]
[1771636509493,0.45224695,84.715,84.689,0.37564144]
[1771636509695,0.48712025,84.713,84.689,0.37564144]
[1771636509893,11.80442429,84.714,84.689,0.37564144]
[1771636511579,0.48712025,84.718,84.691,0.37599991]
[1771636511989,0.48712025,84.728,84.691,0.37599991]
[1771636514294,0.48712025,84.726,84.693,0.37613137]
[1771636517702,0.58712025,84.73,84.695,0.37597232]
[1771636517904,0.58712025,84.73,84.701,0.37597232]
[1771636518489,12.28978266,84.727,84.701,0.37597232]
[1771636519184,0.48712025,84.726,84.702,0.3759337]
[1771636519385,0.1,84.74,84.711,0.49663611]
[1771636520705,11.80094171,84.739,84.711,0.49663611]
[1771636521513,0.48712025,84.738,84.701,0.49663611]
[1771636521690,0.48712025,84.729,84.701,0.49663611]
[1771636522906,0.48712025,84.729,84.703,0.49663611]
[1771636524400,12.28879945,84.734,84.705,0.49663611]
[1771636524588,0.48712025,84.733,84.705,0.49663611]
[1771636528008,0.48712025,84.733,84.707,0.49663611]
[1771636528189,0.48712025,84.731,84.707,0.49663611]
[1771636530114,0.58712025,84.74,84.711,0.49663611]
[1771636530496,11.80094171,84.739,84.711,0.49663611]
[1771636530822,0.48712025,84.738,84.711,0.49663611]
[1771636533117,0.48712025,84.738,84.712,11.80470299]
[1771636533312,0.48712025,84.738,84.713,0.49663611]
[1771636534414,0.48712025,84.733,84.691,0.49663611]
[1771636534618,0.48712025,84.729,84.691,0.49663611]
[1771636535511,0.48712025,84.727,84.693,0.49663611]
[1771636536713,4.28499973,84.72,84.692,11.80749067]
[1771636537018,0.48712025,84.719,84.692,11.80749067]
[1771636541027,0.49288643,84.709,84.681,0.48879553]
[1771636543711,0.49288643,84.709,84.683,0.48879553]
[1771636544618,0.49288643,84.709,84.684,11.80860611]
[1771636544825,0.49288643,84.709,84.685,0.48879553]
[1771636551138,0.49288643,84.709,84.687,0.48879553]
[1771636554835,0.49288643,84.709,84.689,0.48879553]
[1771636556934,0.49288643,84.709,84.691,0.48879553]
[1771636562942,0.49288643,84.717,84.693,0.48879553]
[1771636563529,11.80414561,84.716,84.693,0.48879553]
[1771636563849,12.08554338,84.737,84.693,0.48879553]
[1771636564034,12.08554338,84.737,84.692,41.32621735]
[1771636564035,3.69383402,84.734,84.701,0.48879553]
[1771636565431,11.80177734,84.733,84.703,0.48879553]
[1771636565838,0.49288643,84.732,84.703,0.48879553]
[1771636566043,4.28499973,84.73,84.699,0.48879553]
[1771636566356,0.49288643,84.729,84.699,0.48879553]
[1771636568949,0.48123573,84.727,84.701,0.46302491]
[1771636574639,0.48123573,84.727,84.703,0.46302491]
[1771636577438,0.48123573,84.727,84.705,0.46302491]
[1771636577755,0.48123573,84.738,84.711,0.46302491]
[1771636578764,0.48123573,84.747,84.721,0.46302491]
[1771636579440,0.48123573,84.747,84.723,0.46302491]
[1771636581662,0.48123573,84.739,84.699,0.46302491]
[1771636582670,0.48123573,84.729,84.7,11.80637544]
[1771636582971,0.48123573,84.729,84.701,0.46302491]
[1771636585268,0.48123573,84.727,84.701,0.46302491]
[1771636587063,0.48123573,84.727,84.703,0.46302491]
[1771636588565,0.48123573,84.725,84.703,0.46302491]
[1771636588868,0.48123573,84.725,84.704,11.8058179]
[1771636589062,0.48123573,84.725,84.705,0.46302491]
[1771636590873,0.48123573,84.729,84.705,0.46302491]
[1771636591069,0.48123573,84.736,84.707,0.46302491]
[1771636593473,0.48123573,84.736,84.708,11.80526042]
[1771636593676,0.48123573,84.736,84.709,0.46302491]
[1771636595476,0.48123573,84.736,84.711,0.46302491]
[1771636597462,0.45802822,84.732,84.711,0.46302491]
[1771636601384,3.69383402,84.752,84.64,15.88144866]
[1771636601385,0.45802822,84.719,84.691,11.80763009]
[1771636601568,0.45802822,84.709,84.691,10.52762341]
[1771636603491,0.45802822,84.709,84.691,10.9861598]
[1771636604471,0.45802822,84.709,84.692,0.45853639]
[1771636605490,0.45802822,84.709,84.693,11.80735125]
[1771636608286,0.45802822,84.708,84.672,0.45853639]
[1771636609872,0.45802822,84.699,84.672,0.45853639]
[1771636612302,0.45802822,84.719,84.681,0.45853639]
[1771636612595,0.45802822,84.709,84.674,0.45853639]
[1771636614884,0.45802822,84.707,84.676,0.45853639]
[1771636619405,0.45802822,84.705,84.678,0.45853639]
[1771636620601,11.80553915,84.706,84.672,11.81014136]
[1771636620602,0.45802822,84.699,84.672,11.81014136]
[1771636620990,0.45802822,84.699,84.672,12.26867775]
[1771636621192,0.45802822,84.699,84.673,0.45853639]
[1771636621387,11.80665423,84.698,84.673,0.45853639]
[1771636621700,0.45802822,84.697,84.668,11.81083362]
[1771636622001,0.45802822,84.697,84.669,0.45853639]
[1771636623814,0.45802822,84.697,84.66,33.81576218]
[1771636623815,0.45802822,84.695,84.671,0.45853639]
[1771636624386,0.45802822,84.689,84.671,0.45853639]
[1771636626009,0.45802822,84.687,84.666,0.45853639]
[1771636626213,0.45802822,84.687,84.662,12.27011125]
[1771636627588,0.45802822,84.687,84.662,11.81157486]
[1771636627792,0.45802822,84.687,84.663,0.48926544]
[1771636629303,0.45802822,84.687,84.665,0.48926544]
[1771636633811,0.45802822,84.687,84.667,0.48926544]
[1771636635909,11.80832723,84.686,84.667,0.48926544]
[1771636638496,0.45429123,84.685,84.667,0.48926544]
[1771636648927,0.45429123,84.683,84.667,0.48926544]
[1771636655125,0.45429123,84.687,84.667,0.48926544]
[1771636657512,0.48509802,84.686,84.668,0.49522433]
[1771636658730,0.48509802,84.69,84.67,0.49522433]
[1771636661813,11.80790893,84.689,84.67,0.49522433]
[1771636667531,0.48509802,84.688,84.67,0.49522433]
[1771636669537,11.80818779,84.687,84.67,0.49522433]
[1771636669740,12.29328581,84.687,84.67,0.49522433]
[1771636671315,0.48509802,84.686,84.67,0.49522433]
[1771636672934,0.48509802,84.686,84.666,0.49522433]
[1771636673142,0.48509802,84.684,84.652,0.49522433]
[1771636680149,0.48509802,84.684,84.654,0.49522433]
[1771636682345,0.48509802,84.684,84.655,11.81265134]
[1771636682649,0.48509802,84.684,84.656,0.49522433]
[1771636684539,0.48509802,84.684,84.658,0.49522433]
[1771636688030,0.48509802,84.684,84.659,11.81209322]
[1771636688238,0.48509802,84.684,84.66,0.48625826]
[1771636690360,0.48509802,84.684,84.662,0.48625826]
[1771636692547,0.48509802,84.684,84.664,0.48625826]
[1771636703362,0.48509802,84.684,84.666,0.48625826]
[1771636715480,0.48509802,84.684,84.667,11.81097712]
[1771636715679,0.48509802,84.684,84.668,0.48625826]
[1771636740704,12.27897106,84.688,84.668,0.48625826]
[1771636740883,0.47092122,84.687,84.668,0.48625826]
[1771636744895,0.47092122,84.685,84.668,0.48625826]
[1771636750788,11.80860611,84.684,84.662,11.81161788]
[1771636750990,0.48027948,84.683,84.663,0.49276546]
[1771636753211,0.48027948,84.681,84.663,0.49276546]
[1771636754500,0.48027948,84.681,84.664,12.30416109]
[1771636754896,0.48027948,84.681,84.665,0.49276546]
[1771636772832,0.48027948,84.669,84.633,0.49276546]
[1771636773012,0.48027948,84.649,84.633,0.49276546]
[1771636773212,4.77118537,84.64,84.623,0.49276546]
[1771636773413,0.48027948,84.639,84.623,0.49276546]
[1771636774634,0.48027948,84.639,84.624,11.81697863]
[1771636775416,0.48027948,84.639,84.625,0.49276546]
[1771636776013,0.48027948,84.639,84.624,11.81697863]
[1771636776415,0.48027948,84.649,84.625,0.49276546]
[1771636777526,70.80342364,84.742,84.624,11.81697863]
[1771636777527,4.29090589,84.67,84.631,0.47926393]
[1771636777726,0.45315088,84.669,84.631,0.47926393]
[1771636777932,0.45315088,84.659,84.631,0.47926393]
[1771636778629,0.45315088,84.659,84.633,0.47926393]
[1771636778939,0.45315088,84.649,84.614,0.47926393]
[1771636780031,11.81350895,84.649,84.614,11.8183752]
[1771636780240,0.45315088,84.648,84.615,0.47926393]
[1771636783222,0.45315088,84.648,84.617,0.47926393]
[1771636784847,0.45315088,84.648,84.621,0.47926393]
[1771636785031,0.45315088,84.666,84.631,0.47926393]
[1771636785218,0.28432314,84.665,84.631,0.47926393]
[1771636785422,0.28432314,84.665,84.63,4.29090589]
[1771636785423,0.45315088,84.676,84.641,0.47926393]
[1771636785618,0.45315088,84.676,84.618,41.36235789]
[1771636785619,11.80893046,84.682,84.651,0.47926393]
[1771636785928,0.73747402,84.681,84.651,0.47926393]
[1771636786241,0.45315088,84.681,84.651,0.47926393]
[1771636788119,3.69383402,84.702,84.61,0.2]
[1771636788120,0.45315088,84.669,84.64,12.29400379]
[1771636788325,0.45315088,84.669,84.641,0.47926393]
[1771636788843,0.45315088,84.659,84.637,11.81516358]
[1771636789843,0.45315088,84.659,84.638,0.47926393]
[1771636790744,0.45315088,84.659,84.64,0.47926393]
[1771636792526,0.45315088,84.658,84.64,0.47926393]
[1771636794851,0.45315088,84.658,84.635,0.47926393]
[1771636798045,11.81237227,84.657,84.635,0.47926393]
[1771636798249,0.45315088,84.649,84.625,0.47926393]
[1771636801547,0.14216157,84.64,84.618,0.47926393]
[1771636801776,0.45315088,84.639,84.612,0.47926393]
[1771636802044,0.45315088,84.639,84.611,11.81879424]
[1771636802447,0.45315088,84.639,84.611,12.29805817]
[1771636802753,0.45315088,84.639,84.612,0.47926393]
[1771636804952,0.45315088,84.639,84.614,0.47926393]
[1771636806549,0.45315088,84.637,84.61,0.67926393]
[1771636806744,0.45315088,84.637,84.611,11.81879424]
[1771636806953,0.45315088,84.637,84.612,0.47926393]
[1771636807652,0.47228391,84.629,84.61,0.2]
[1771636807958,0.47228391,84.619,84.601,11.82008037]
[1771636808641,0.47228391,84.619,84.59,0.2]
[1771636808642,0.4474819,84.609,84.59,0.2]
[1771636809044,0.4474819,84.599,84.58,0.2]
[1771636810041,0.4474819,84.599,84.575,0.47836491]
[1771636811971,12.26802816,84.599,84.575,0.47836491]
[1771636814458,11.82054626,84.599,84.575,0.47836491]
[1771636814765,0.44747639,84.598,84.575,0.47836491]
[1771636815267,33.5999653,84.617,84.577,0.49402398]
[1771636815566,33.5999653,84.617,84.591,0.49402398]
[1771636815964,0.28432314,84.616,84.591,0.49402398]
[1771636816469,0.28432314,84.614,84.591,0.49402398]
[1771636816660,0.28432314,84.627,84.591,0.49402398]
[1771636817766,12.10088286,84.627,84.593,0.49402398]
[1771636822856,11.81655972,84.627,84.595,0.49402398]
[1771636824978,11.81655972,84.627,84.596,11.82088987]
[1771636825166,11.81655972,84.627,84.597,0.49402398]
[1771636826156,11.81655972,84.627,84.599,0.49402398]
[1771636827279,4.29090589,84.62,84.598,12.31463439]
[1771636827477,0.47228391,84.619,84.585,29.55581236]
[1771636827667,0.47228391,84.619,84.586,11.82228737]
[1771636828055,0.47228391,84.617,84.585,29.55581236]
[1771636829576,0.47228391,84.615,84.588,0.47836491]
[1771636829958,0.47228391,84.619,84.591,0.47836491]
[1771636832578,11.81655972,84.627,84.601,0.47836491]
[1771636834075,11.81655972,84.627,84.603,0.47836491]
[1771636838362,0.45914432,84.627,84.603,0.47836491]
[1771636841880,0.45914432,84.647,84.611,0.4523111]
[1771636842076,0.45914432,84.645,84.611,0.4523111]
[1771636844064,0.45914432,84.639,84.605,11.8195158]
[1771636844275,0.45914432,84.639,84.606,0.4523111]
[1771636847581,0.45914432,84.637,84.606,0.4523111]
[1771636847767,0.45914432,84.629,84.606,0.4523111]
[1771636853893,0.45914432,84.629,84.608,0.4523111]
[1771636854103,0.28432314,84.64,84.608,0.4523111]
[1771636854994,0.45914432,84.64,84.61,4.29592059]
[1771636855379,11.81488439,84.639,84.612,0.4523111]
[1771636858579,0.45914432,84.639,84.612,0.4523111]
[1771636861382,11.81502398,84.638,84.612,0.4523111]
[1771636861596,0.45914432,84.637,84.612,0.4523111]
[1771636863004,0.45914432,84.637,84.613,11.81851488]
[1771636863184,0.45914432,84.637,84.614,0.4523111]
[1771636865407,0.45914432,84.635,84.614,0.4523111]
[1771636867997,0.45914432,84.635,84.616,0.47030687]
[1771636875600,0.46507239,84.64,84.616,0.47030687]
[1771636875796,0.28432314,84.644,84.618,0.47030687]
[1771636876015,0.46507239,84.645,84.618,0.47030687]
[1771636876819,0.28432314,84.64,84.618,0.47030687]
[1771636877007,0.74939553,84.64,84.618,0.47030687]
[1771636878323,11.81488439,84.639,84.618,0.47030687]
[1771636881730,0.46507239,84.638,84.618,0.47030687]
[1771636881908,0.46507239,84.638,84.612,11.8185172]
[1771636882224,0.46507239,84.638,84.613,0.47030687]
[1771636883117,11.81516358,84.637,84.613,0.47030687]
[1771636883420,0.46507239,84.636,84.613,0.47030687]
[1771636885809,0.46507239,84.636,84.615,0.47030687]
[1771636892827,11.81516358,84.637,84.617,0.47030687]
[1771636902635,0.46596146,84.636,84.617,0.47030687]
[1771636906126,0.46596146,84.639,84.619,0.48223197]
[1771636906534,12.28084585,84.639,84.619,0.48223197]
[1771636910642,0.46596146,84.645,84.619,0.48223197]
[1771636911542,0.46596146,84.645,84.621,0.48223197]
[1771636912035,0.46596146,84.645,84.622,11.81725792]
[1771636912241,0.46596146,84.645,84.623,0.48223197]
[1771636915646,11.81418647,84.644,84.623,0.48223197]
[1771636916140,0.46596146,84.643,84.623,0.48223197]
[1771636918942,4.29494126,84.63,84.607,0.48223197]
[1771636919254,0.46596146,84.629,84.607,0.48223197]
[1771636920040,0.46596146,84.629,84.59,4.29494126]
[1771636920041,0.46596146,84.629,84.591,11.82158858]
[1771636920841,0.46596146,84.629,84.591,41.37556004]
[1771636921930,0.46596146,84.627,84.594,0.48223197]
[1771636924748,0.46596146,84.627,84.596,0.48223197]
[1771636925243,0.46596146,84.625,84.596,0.48223197]
[1771636927048,0.46596146,84.619,84.591,12.30372224]
[1771636927351,0.46596146,84.619,84.592,0.48223197]
[1771636936254,0.46596146,84.619,84.581,29.55724174]
[1771636936255,0.49028042,84.617,84.593,11.82130909]
[1771636936448,0.49028042,84.617,84.594,0.45159146]
[1771636941762,0.49028042,84.615,84.594,0.45159146]
[1771636944167,0.49028042,84.615,84.596,0.45159146]
[1771636948554,0.49028042,84.615,84.598,0.45159146]
[1771636948871,29.53769662,84.638,84.6,0.45159146]
[1771636949055,0.49028042,84.63,84.601,0.45159146]
[1771636949567,0.49028042,84.619,84.593,0.45159146]
[1771636950270,0.49028042,84.625,84.593,0.45159146]
[1771636953881,0.49028042,84.624,84.594,11.82116935]
[1771636954078,0.49028042,84.624,84.595,0.45159146]
[1771636955865,0.49028042,84.624,84.596,11.82088987]
[1771636956176,0.49028042,84.624,84.597,0.45159146]
[1771636960983,0.47581886,84.622,84.599,0.48149169]
[1771636966686,0.47581886,84.622,84.601,0.48149169]
[1771636968585,0.47581886,84.62,84.601,0.48149169]
[1771636969485,0.47581886,84.619,84.57,4.49630236]
[1771636970573,0.47581886,84.617,84.575,29.55956251]
[1771636971082,0.47581886,84.617,84.58,4.29630236]
[1771636971489,0.47581886,84.617,84.581,0.48149169]
[1771636975190,0.47581886,84.615,84.583,0.48149169]
[1771636975878,11.81809586,84.616,84.57,0.2]
[1771636975879,0.47581886,84.609,84.57,0.2]
[1771636976191,0.47581886,84.599,84.571,0.48149169]
[1771636976685,0.47581886,84.589,84.56,12.30728906]
[1771636977386,0.47581886,84.587,84.56,12.30728906]
[1771636978688,0.47581886,84.585,84.56,12.30728906]
[1771636980481,0.47581886,84.585,84.561,0.48149169]
[1771636982174,59.09047934,84.616,84.551,41.39513428]
[1771636982175,0.47581886,84.62,84.571,0.48149169]
[1771636982401,0.47581886,84.607,84.572,12.30573612]
[1771636982694,0.47581886,84.607,84.573,0.48149169]
[1771636982992,0.47581886,84.599,84.573,0.48149169]
[1771636986996,41.36724659,84.608,84.573,0.48149169]
[1771636986997,0.47581886,84.597,84.573,0.48149169]
[1771636990296,0.48275911,84.595,84.572,11.82424443]
[1771636990700,0.28432314,84.585,84.557,0.4545566]
[1771636990901,0.48275911,84.579,84.555,12.28117704]
[1771636991089,0.48275911,84.579,84.556,0.4545566]
[1771636995794,11.82340561,84.578,84.556,0.4545566]
[1771636996011,0.48275911,84.577,84.551,12.28162166]
[1771636996920,0.48275911,84.607,84.571,0.4545566]
[1771636997206,0.48275911,84.599,84.571,0.4545566]
[1771636998812,11.81921331,84.608,84.581,0.4545566]
[1771636999000,11.81921331,84.608,84.591,0.4545566]
[1771636999395,0.48275911,84.607,84.591,0.4545566]
[1771637001807,0.48275911,84.605,84.582,0.4545566]
[1771637002014,0.48275911,84.605,84.581,11.82298624]
[1771637004610,0.48275911,84.605,84.582,0.4545566]
[1771637010802,0.48275911,84.605,84.584,0.4545566]
[1771637014323,0.48275911,84.604,84.584,0.4545566]
[1771637020333,0.48275911,84.604,84.579,0.48940549]
[1771637020510,11.81966489,84.605,84.579,0.48940549]
[1771637020511,0.49338193,84.602,84.579,0.48940549]
[1771637022021,0.49338193,84.602,84.581,0.48940549]
[1771637025334,0.49338193,84.602,84.582,11.82284646]
[1771637025537,0.49338193,84.602,84.583,0.48940549]
[1771637028042,0.49338193,84.602,84.578,0.48940549]
[1771637031435,0.49338193,84.602,84.572,29.56044179]
[1771637031436,0.49338193,84.602,84.58,0.48940549]
[1771637033943,0.49338193,84.602,84.581,11.82298624]
[1771637034145,0.49338193,84.602,84.582,0.48940549]
[1771637037346,0.49338193,84.602,84.583,11.82270669]
[1771637037550,0.49338193,84.602,84.584,0.48940549]
[1771637041951,0.49338193,84.602,84.58,0.48940549]
[1771637043253,0.49338193,84.602,84.581,11.82298624]
[1771637043552,0.49338193,84.602,84.581,12.31239173]
[1771637044849,0.49338193,84.602,84.582,0.48940549]
[1771637049339,0.49338193,84.602,84.583,12.27501178]
[1771637050872,0.49338193,84.602,84.584,0.45230509]
[1771637062451,0.49338193,84.602,84.583,11.82270669]
[1771637062452,0.4946081,84.6,84.578,0.45230509]
[1771637062661,0.4946081,84.6,84.579,11.82326582]
[1771637062975,0.4946081,84.6,84.579,12.27557091]
[1771637063356,0.4946081,84.6,84.58,0.45230509]
[1771637067077,0.4946081,84.6,84.582,0.45230509]
[1771637070180,12.31430693,84.605,84.584,0.45230509]
[1771637070475,0.4946081,84.604,84.584,0.45230509]
[1771637072172,0.4946081,84.604,84.586,0.45230509]
[1771637076258,0.4946081,84.602,84.586,0.45230509]
[1771637079686,0.46359955,84.607,84.581,0.47190534]
[1771637082490,0.46359955,84.607,84.583,0.47190534]
[1771637084789,0.46359955,84.607,84.584,11.82256691]
[1771637084978,0.46359955,84.607,84.585,0.47190534]
[1771637088593,0.46359955,84.607,84.587,0.47190534]
[1771637092500,0.46359955,84.607,84.588,11.82200784]
[1771637092704,0.46359955,84.607,84.588,12.29391318]
[1771637093200,0.46359955,84.605,84.584,11.82248752]
[1771637093386,0.46359955,84.605,84.585,0.47190534]
[1771637094509,0.46359955,84.605,84.586,12.29419271]
[1771637095303,0.46359955,84.605,84.587,0.47190534]
[1771637096401,0.47080251,84.603,84.532,47.31904831]
[1771637096604,0.47080251,84.599,84.545,3.69383402]
[1771637097274,0.47080251,84.599,84.55,4.29776371]
[1771637097979,0.47080251,84.599,84.56,4.29776371]
[1771637098482,0.47080251,84.597,84.562,0.05839797]
[1771637100186,0.47080251,84.595,84.562,0.05839797]
[1771637101790,0.47080251,84.595,84.571,0.05839783]
[1771637102619,0.47080251,84.595,84.572,0.05839783]
[1771637102787,0.47080251,84.593,84.572,0.05839783]
[1771637115792,0.47080251,84.609,84.581,0.05839735]
[1771637117503,0.47080251,84.609,84.581,11.82298624]
[1771637117690,0.47080251,84.609,84.582,0.05839732]
[1771637122109,0.47080251,84.608,84.582,0.05839732]
[1771637130417,0.47080251,84.608,84.591,0.058397]
[1771637131916,0.47080251,84.608,84.592,0.05839695]
[1771637133124,11.81803242,84.617,84.592,0.45445061]
[1771637134008,12.10060361,84.629,84.594,0.45445061]
[1771637135012,0.45486866,84.624,84.594,0.45445061]
[1771637135215,0.45486866,84.62,84.594,0.45445061]
[1771637136431,0.28432314,84.628,84.59,4.29776371]
[1771637136432,0.45486866,84.618,84.596,0.45445061]
[1771637139925,0.45486866,84.618,84.597,11.82075014]
[1771637140222,0.45486866,84.618,84.598,0.48221147]
[1771637143124,0.45486866,84.618,84.591,29.55382383]
[1771637143125,0.45486866,84.618,84.6,0.48221147]
[1771637145616,0.45486866,84.618,84.595,0.48221147]
[1771637153117,0.45486866,84.618,84.597,0.48221147]
[1771637154932,0.45486866,84.618,84.596,11.82088987]
[1771637160822,0.49331915,84.616,84.591,11.82158858]
[1771637161142,0.49331915,84.616,84.58,29.55765973]
[1771637161343,0.49331915,84.614,84.579,0.48221147]
[1771637161536,0.49331915,84.614,84.562,5.36086188]
[1771637161537,0.49331915,84.614,84.581,0.48221147]
[1771637162740,0.49331915,84.614,84.582,12.30505793]
[1771637163141,0.49331915,84.614,84.583,0.48221147]
[1771637164947,0.49331915,84.614,84.584,11.82256691]
[1771637167249,0.46807003,84.609,84.584,0.48221147]
[1771637172950,0.48011592,84.607,84.573,0.46964228]
[1771637176245,0.48011592,84.605,84.575,0.46964228]
[1771637178859,4.29641289,84.61,84.571,29.56096061]
[1771637178860,0.48011592,84.603,84.577,0.46964228]
[1771637183964,0.48011592,84.603,84.579,0.46964228]
[1771637185766,0.48011592,84.603,84.58,12.29276831]
[1771637186348,0.48011592,84.603,84.581,0.46964228]
[1771637201496,0.48011592,84.603,84.583,0.49613877]
[1771637202302,0.46300397,84.602,84.583,0.49613877]
[1771637206003,0.46300397,84.602,84.571,29.56096061]
[1771637206004,0.46300397,84.602,84.579,0.49613877]
[1771637207807,0.46300397,84.602,84.581,0.49613877]
[1771637217027,0.46300397,84.602,84.583,0.49613877]
[1771637220099,0.28432314,84.615,84.583,0.49613877]
[1771637220600,0.28432314,84.615,84.585,0.49613877]
[1771637221802,0.28432314,84.613,84.585,0.49613877]
[1771637222010,0.46300397,84.61,84.585,0.49613877]
[1771637223018,0.46300397,84.609,84.58,0.49613877]
[1771637224935,0.46300397,84.609,84.582,0.49613877]
[1771637225107,29.54318773,84.622,84.582,0.49613877]
[1771637225108,0.46300397,84.616,84.582,0.49613877]
[1771637227126,0.46300397,84.614,84.584,0.49613877]
[1771637229412,0.45956741,84.612,84.586,0.48383129]
[1771637231519,0.45956741,84.61,84.588,0.48383129]
[1771637234635,0.45956741,84.61,84.59,0.48383129]
[1771637235834,0.45956741,84.614,84.59,0.48383129]
[1771637237142,0.45956741,84.613,84.582,0.48383129]
[1771637241932,0.45956741,84.613,84.583,11.82270669]
[1771637242124,0.45956741,84.613,84.584,0.48383129]
[1771637244137,33.51990555,84.626,84.59,4.29838998]
[1771637244138,11.81791582,84.618,84.59,4.29838998]
[1771637244344,12.27748323,84.618,84.591,0.48383129]
[1771637244636,0.45956741,84.617,84.591,0.48383129]
[1771637248139,0.45956741,84.615,84.591,0.48383129]
[1771637253051,0.45956741,84.615,84.593,0.48383129]
[1771637253735,11.8183752,84.614,84.593,0.48383129]
[1771637253932,0.45956741,84.613,84.593,0.48383129]
[1771637254843,0.45956741,84.623,84.601,0.48383129]
[1771637255248,0.45956741,84.623,84.602,0.48383129]
[1771637257950,0.49600566,84.621,84.602,0.48383129]
[1771637258948,0.49600566,84.619,84.59,16.12011366]
[1771637259153,0.49600566,84.619,84.59,11.82172368]
[1771637260641,0.49600566,84.619,84.561,62.2]
[1771637260642,0.49600566,84.617,84.564,5.36086188]
[1771637260844,0.49600566,84.617,84.58,4.29838998]
[1771637261043,0.49600566,84.617,84.581,0.49791232]
[1771637262058,0.49600566,84.615,84.583,0.49791232]
[1771637266266,0.49600566,84.613,84.591,0.49791232]
[1771637274366,0.49600566,84.611,84.585,0.49791232]
[1771637274572,0.49600566,84.611,84.584,11.82256691]
[1771637275270,0.49600566,84.611,84.584,12.32047923]
[1771637276260,0.49600566,84.609,84.584,12.32047923]
[1771637276773,0.49600566,84.609,84.58,16.6185858]
[1771637281171,0.49600566,84.589,84.564,0.49791232]
[1771637281370,0.49600566,84.589,84.561,11.82578257]
[1771637281553,0.63816723,84.579,84.541,0.49791232]
[1771637281760,0.49600566,84.569,84.541,12.32649253]
[1771637281958,0.49600566,84.569,84.542,0.49791232]
[1771637283075,0.49600566,84.569,84.551,11.82718122]
[1771637283401,0.49600566,84.569,84.552,0.49791232]
[1771637284874,0.14216157,84.599,84.561,0.49791232]
[1771637286160,0.28432314,84.596,84.563,0.49791232]
[1771637286956,0.49600566,84.589,84.563,0.49791232]
[1771637289482,0.45515101,84.588,84.565,0.47800093]
[1771637299688,0.45515101,84.588,84.567,0.47800093]
[1771637305699,0.45515101,84.588,84.569,0.47800093]
[1771637307304,0.45515101,84.588,84.571,0.47800093]
[1771637311006,0.45515101,84.586,84.561,12.3037835]
[1771637311379,0.45515101,84.586,84.562,0.47800093]
[1771637313806,11.82242714,84.585,84.563,12.3035038]
[1771637314105,0.45515101,84.584,84.564,0.47800093]
[1771637327111,0.45515101,84.584,84.566,0.49930435]
[1771637333104,0.45290527,84.582,84.562,11.82563828]
[1771637333606,0.45290527,84.582,84.563,0.49930435]
[1771637337218,0.45290527,84.582,84.564,11.82536303]
[1771637337417,0.45290527,84.582,84.565,0.49930435]
[1771637341005,0.45290527,84.582,84.566,12.32438771]
[1771637341206,0.45290527,84.582,84.567,0.49930435]
[1771637345430,0.45290527,84.582,84.569,0.49930435]
[1771637345608,0.45290527,84.589,84.569,0.49930435]
[1771637347331,0.46308129,84.587,84.569,0.49930435]
[1771637350434,0.46308129,84.585,84.569,0.49930435]
[1771637352132,0.46308129,84.585,84.557,29.56551184]
[1771637352133,11.82256691,84.584,84.565,0.45570596]
[1771637352340,0.46308129,84.583,84.565,0.45570596]
[1771637353142,0.46308129,84.583,84.55,4.29988396]
[1771637353143,0.46308129,84.579,84.552,0.45570596]
[1771637354544,0.46308129,84.577,84.554,0.45570596]
[1771637359035,11.8236852,84.576,84.554,0.45570596]
[1771637359345,0.46308129,84.575,84.554,0.45570596]
[1771637360234,0.28432314,84.594,84.561,0.45570596]
[1771637360540,11.82061041,84.598,84.571,0.45570596]
[1771637361646,0.28432314,84.605,84.572,0.45570596]
[1771637362146,0.14216157,84.605,84.572,0.45570596]
[1771637362325,0.46308129,84.6,84.572,0.45570596]
[1771637363339,11.82047069,84.599,84.572,0.45570596]
[1771637363645,11.82047069,84.599,84.542,5.36086188]
[1771637363646,11.82047069,84.599,84.581,0.45570596]
[1771637363844,0.46308129,84.614,84.581,0.45570596]
[1771637364150,0.46308129,84.61,84.581,0.45570596]
[1771637368139,0.46308129,84.608,84.581,0.45570596]
[1771637369544,11.819353,84.607,84.581,0.45570596]
[1771637369731,0.46308129,84.606,84.581,0.45570596]
[1771637374049,12.28103749,84.617,84.591,0.45570596]
[1771637374553,0.46308129,84.616,84.591,0.45570596]
[1771637378135,4.29988396,84.63,84.591,0.45570596]
[1771637378335,12.28437463,84.629,84.601,0.47507353]
[1771637378549,0.46809416,84.628,84.601,0.47507353]
[1771637381361,0.46809416,84.626,84.601,0.47507353]
[1771637383348,0.46809416,84.624,84.601,0.47507353]
[1771637387265,11.81683899,84.625,84.601,0.47507353]
[1771637387266,11.81711827,84.623,84.601,0.47507353]